bitfinex/quotes_SOLUSD_20250416
["timestamp","ask_amount","ask_price","bid_price","bid_amount"]
[1744826325000,7.98722044,125.2,125.12,53.97297824]
[1744826325189,44.56737127,125.18,125.12,7.99232736]
[1744826325368,44.56737127,125.15,125.09,249.42]
[1744826325573,28.09743312,125.2,125.12,44.56737127]
[1744826325988,7.98722044,125.2,125.15,44.56737127]
[1744826326181,44.56737127,125.2,125.15,44.56737127]
[1744826326496,27.95303889,125.21,125.1,7.99360511]
[1744826326694,44.56737127,125.17,125.12,44.56737127]
[1744826326886,7.98658254,125.21,125.16,44.56737127]
[1744826327087,52.55395381,125.21,125.16,44.56737127]
[1744826327393,7.98658254,125.21,125.17,44.56737127]
[1744826327699,52.55395381,125.21,125.16,44.56737127]
[1744826327870,44.56737127,125.2,125.11,0.28432314]
[1744826328069,7.98658254,125.21,125.13,26.28432314]
[1744826328331,44.56737127,125.21,125.14,7.99105002]
[1744826328780,44.56737127,125.2,125.14,7.99105002]
[1744826328979,44.56737127,125.22,125.13,44.56737127]
[1744826329170,44.56737127,125.18,125.13,44.56737127]
[1744826329499,44.56737127,125.16,125.11,7.99296618]
[1744826329698,44.56737127,125.15,125.11,44.56737127]
[1744826329897,26.0,125.21,125.1,52.56092034]
[1744826330098,106.66712756,125.23,125.1,52.56092034]
[1744826330099,27.94878196,125.23,125.16,44.56737127]
[1744826330278,44.56737127,125.22,125.17,44.56737127]
[1744826330602,44.56737127,125.22,125.06,7.99616184]
[1744826330606,44.56737127,125.18,125.06,7.99616184]
[1744826330901,44.56737127,125.14,125.07,30.0]
[1744826331108,0.14216157,125.19,125.09,44.56737127]
[1744826331398,44.56737127,125.15,125.07,30.0]
[1744826331711,44.56737127,125.11,125.07,30.0]
[1744826331886,0.14216157,125.19,125.07,30.0]
[1744826332088,12.1089,125.2,125.07,30.0]
[1744826332296,44.56737127,125.15,125.08,7.99488327]
[1744826332598,44.56737127,125.1,125.06,7.99600107]
[1744826332787,26.14216157,125.13,125.01,27.99618608]
[1744826332991,26.0,125.13,125.06,44.56737127]
[1744826333188,44.56737127,125.1,125.05,44.56737127]
[1744826333390,44.56737127,125.09,125.04,44.56737127]
[1744826333597,44.56737127,125.08,125.02,30.0]
[1744826333906,7.99105002,125.14,125.06,7.99572239]
[1744826334082,44.56737127,125.1,125.05,7.99680127]
[1744826334282,7.99105002,125.14,125.09,44.56737127]
[1744826334480,52.55778277,125.15,125.06,0.14216157]
[1744826334809,7.9904115,125.15,125.11,44.56737127]
[1744826335005,12.1089,125.2,125.13,44.56737127]
[1744826335192,52.55522972,125.19,125.1,44.56737127]
[1744826335386,52.55522972,125.19,125.14,44.56737127]
[1744826335575,7.98785845,125.19,125.1,44.56737127]
[1744826335782,52.55522972,125.19,125.14,44.56737127]
[1744826335983,44.56737127,125.17,125.11,7.99279896]
[1744826336275,7.98785845,125.19,125.14,44.56737127]
[1744826336497,7.98785845,125.19,125.15,44.56737127]
[1744826336679,7.98744787,125.2,125.11,27.97521443]
[1744826336881,7.98744787,125.2,125.15,44.56737127]
[1744826337085,52.55481914,125.2,125.15,44.56737127]
[1744826337289,7.98744787,125.2,125.16,44.56737127]
[1744826337709,7.98530703,125.23,125.17,44.56737127]
[1744826338006,44.56737127,125.21,125.17,44.56737127]
[1744826338212,26.063,125.24,125.17,44.56737127]
[1744826338388,0.063,125.24,125.16,44.56737127]
[1744826338705,0.063,125.24,125.2,44.56737127]
[1744826339006,0.063,125.24,125.17,0.28432314]
[1744826339183,44.63037127,125.24,125.16,26.0]
[1744826339387,0.063,125.24,125.2,44.56737127]
[1744826339700,44.56737127,125.22,125.17,44.56737127]
[1744826339899,8.04788411,125.24,125.19,44.56737127]
[1744826340098,52.61525538,125.24,125.19,44.56737127]
[1744826340496,8.04788411,125.24,125.19,44.56737127]
[1744826340688,8.04788411,125.24,125.18,44.56737127]
[1744826340689,44.56737127,125.23,125.18,44.56737127]
[1744826341008,44.56737127,125.23,125.12,19.97937697]
[1744826341009,44.56737127,125.21,125.12,19.97937697]
[1744826341181,8.04788615,125.24,125.16,44.56737127]
[1744826341386,8.04788615,125.24,125.19,44.56737127]
[1744826341697,44.56737127,125.23,125.19,44.56737127]
[1744826342286,44.56737127,125.23,125.18,44.56737127]
[1744826342607,8.04788615,125.24,125.19,26.0]
[1744826342608,0.063,125.24,125.19,26.0]
[1744826342806,0.063,125.24,125.2,44.56737127]
[1744826343017,8.0477191,125.24,125.2,44.56737127]
[1744826343187,0.063,125.24,125.2,44.56737127]
[1744826343509,44.63037127,125.24,125.19,44.56737127]
[1744826344291,44.63037127,125.24,125.2,44.56737127]
[1744826344492,0.063,125.24,125.21,44.56737127]
[1744826344708,0.063,125.24,125.2,44.56737127]
[1744826344902,44.63037127,125.24,125.17,7.98913477]
[1744826345217,0.063,125.24,125.21,44.56737127]
[1744826345393,0.063,125.24,125.17,7.98913477]
[1744826345789,44.56737127,125.23,125.18,44.56737127]
[1744826346115,0.063,125.24,125.19,44.56737127]
[1744826346298,0.063,125.24,125.18,44.56737127]
[1744826346487,44.56737127,125.23,125.18,44.56737127]
[1744826346687,44.56737127,125.19,125.11,7.99296618]
[1744826346887,44.56737127,125.15,125.12,30.0]
[1744826347281,44.56737127,125.15,125.1,52.56073463]
[1744826347282,26.0,125.19,125.1,52.56073463]
[1744826347503,44.56737127,125.16,125.1,7.99336336]
[1744826347710,44.56737127,125.13,125.07,7.9955225]
[1744826347892,44.56737127,125.13,125.08,74.56737127]
[1744826348093,26.0,125.18,125.1,44.56737127]
[1744826348326,44.56737127,125.12,125.08,74.56737127]
[1744826348618,26.0,125.18,125.08,37.99478454]
[1744826348794,44.56737127,125.12,125.08,30.0]
[1744826348993,28.10413328,125.17,125.08,74.56737127]
[1744826349226,44.56737127,125.12,125.07,7.99525742]
[1744826349516,27.96197171,125.17,125.09,44.56737127]
[1744826349713,44.56737127,125.13,125.08,44.56737127]
[1744826350093,44.56737127,125.16,125.08,44.56737127]
[1744826350292,44.56737127,125.16,125.04,90.70285599]
[1744826350293,44.56737127,125.11,125.06,7.99596432]
[1744826350492,44.56737127,125.11,125.06,52.56333559]
[1744826350721,44.56737127,125.11,125.07,44.56737127]
[1744826350918,52.55969863,125.12,125.07,44.56737127]
[1744826351333,7.9904115,125.15,125.09,44.56737127]
[1744826351615,44.56737127,125.13,125.09,44.56737127]
[1744826352210,7.99232736,125.12,125.08,44.56737127]
[1744826352411,7.99232736,125.12,125.07,7.99539165]
[1744826352588,44.56737127,125.09,125.01,13.2462]
[1744826352789,44.56737127,125.07,125.02,74.56737127]
[1744826353013,44.56737127,125.06,125.02,30.0]
[1744826353199,64.79181043,125.09,124.93,48.02689506]
[1744826353200,44.56737127,125.03,124.93,48.02689506]
[1744826353402,64.933972,125.09,125.01,44.56737127]
[1744826353403,44.79181043,125.09,125.01,44.56737127]
[1744826353602,44.56737127,125.04,124.96,26.0]
[1744826353806,120.64881941,125.12,124.98,44.56737127]
[1744826354001,44.56737127,125.07,125.02,44.56737127]
[1744826354202,26.0,125.1,125.03,44.56737127]
[1744826354418,7.99424414,125.09,125.02,44.56737127]
[1744826354620,44.56737127,125.07,125.02,44.56737127]
[1744826354826,44.56737127,125.07,125.03,44.56737127]
[1744826355120,44.56737127,125.06,125.0,8.0]
[1744826355303,44.56737127,125.07,125.02,44.56737127]
[1744826355509,44.56737127,125.07,125.0,8.0]
[1744826355711,44.56737127,125.07,125.02,44.56737127]
[1744826356019,44.56737127,125.08,125.03,44.56737127]
[1744826356197,7.99424414,125.09,125.05,44.56737127]
[1744826356397,7.99296618,125.11,125.06,44.56737127]
[1744826356606,52.56033745,125.11,125.06,44.56737127]
[1744826357002,52.56033745,125.11,125.05,7.99667052]
[1744826357003,52.56033745,125.11,125.07,44.56737127]
[1744826357211,44.56737127,125.13,125.08,44.56737127]
[1744826357511,44.56737127,125.12,125.07,44.56737127]
[1744826358712,53.96644026,125.15,125.04,7.99744081]
[1744826358908,44.56737127,125.09,125.04,7.99744081]
[1744826359102,53.96644026,125.15,125.05,44.56737127]
[1744826359103,44.56737127,125.1,125.05,44.56737127]
[1744826359424,44.56737127,125.07,124.94,4.02013822]
[1744826359610,44.56737127,125.1,125.02,44.56737127]
[1744826359814,44.56737127,125.06,125.02,44.56737127]
[1744826360121,44.56737127,125.1,125.03,44.56737127]
[1744826360324,26.0,125.11,125.04,44.56737127]
[1744826360514,44.56737127,125.08,125.04,44.56737127]
[1744826360708,44.56737127,125.08,125.04,52.56474405]
[1744826361011,44.56737127,125.09,125.05,44.56737127]
[1744826361323,44.56737127,125.09,125.04,44.56737127]
[1744826361929,44.56737127,125.08,125.03,44.56737127]
[1744826362509,44.56737127,125.07,125.03,44.56737127]
[1744826362706,44.56737127,125.04,124.99,8.00064005]
[1744826363027,7.99492261,125.08,125.03,44.56737127]
[1744826363028,44.56737127,125.07,125.03,44.56737127]
[1744826363210,44.56737127,125.07,125.02,44.56737127]
[1744826363529,52.56229388,125.08,125.03,44.56737127]
[1744826363731,44.56737127,125.08,125.04,44.56737127]
[1744826363914,44.56737127,125.09,125.05,44.56737127]
[1744826364228,7.99440616,125.09,125.05,44.56737127]
[1744826364610,52.56119383,125.1,125.06,44.56737127]
[1744826364817,26.0,125.13,125.06,44.56737127]
[1744826365015,26.0,125.13,125.07,44.56737127]
[1744826365201,44.56737127,125.11,125.07,44.56737127]
[1744826365711,44.56737127,125.11,125.06,44.56737127]
[1744826366117,7.99360511,125.1,125.04,7.99697084]
[1744826366327,7.99360511,125.1,125.06,44.56737127]
[1744826366706,7.9931837,125.11,125.08,44.56737127]
[1744826367013,84.80208737,125.16,125.1,44.56737127]
[1744826367014,7.98977309,125.16,125.1,44.56737127]
[1744826367208,7.98977309,125.16,125.13,44.56737127]
[1744826367831,20.5146311,125.17,125.13,44.56737127]
[1744826368015,26.0,125.18,125.13,44.56737127]
[1744826368222,19.96843993,125.2,125.1,44.56737127]
[1744826368223,19.96843993,125.2,125.15,44.56737127]
[1744826368521,44.56737127,125.19,125.14,44.56737127]
[1744826368729,19.96843993,125.2,125.15,44.56737127]
[1744826369038,44.56737127,125.17,125.13,44.56737127]
[1744826369334,19.96843993,125.2,125.14,44.56737127]
[1744826369639,44.56737127,125.19,125.15,44.56737127]
[1744826370013,44.56737127,125.18,125.14,44.56737127]
[1744826370212,7.98658254,125.21,125.16,44.56737127]
[1744826370411,7.98658254,125.21,125.17,44.56737127]
[1744826370627,7.98658254,125.21,125.18,44.56737127]
[1744826370826,7.98616448,125.22,125.19,44.56737127]
[1744826371009,0.063,125.24,125.21,44.56737127]
[1744826371214,44.56737127,125.22,125.14,7.99085511]
[1744826371408,44.56737127,125.19,125.11,38.7585]
[1744826371623,44.56737127,125.19,125.14,44.56737127]
[1744826372438,44.56737127,125.21,125.16,44.56737127]
[1744826372635,44.56737127,125.2,125.16,44.56737127]
[1744826373013,44.56737127,125.2,125.12,28.11512932]
[1744826373014,44.56737127,125.19,125.15,44.56737127]
[1744826373239,44.56737127,125.2,125.16,44.56737127]
[1744826373417,44.56737127,125.2,125.12,7.99232736]
[1744826373418,44.56737127,125.19,125.12,27.97314577]
[1744826373620,44.56737127,125.19,125.12,7.99232736]
[1744826373831,44.56737127,125.19,125.15,44.56737127]
[1744826374033,7.98658254,125.21,125.16,44.56737127]
[1744826374334,44.56737127,125.21,125.17,44.56737127]
[1744826374541,27.94857461,125.23,125.16,44.56737127]
[1744826374716,44.56737127,125.21,125.16,44.56737127]
[1744826374921,44.56737127,125.2,125.15,44.56737127]
[1744826375119,44.56737127,125.19,125.15,44.56737127]
[1744826375619,27.94857461,125.23,125.16,44.56737127]
[1744826375845,27.94857461,125.23,125.17,44.56737127]
[1744826376039,7.98530703,125.23,125.19,44.56737127]
[1744826376254,7.98530703,125.23,125.17,7.98913477]
[1744826376426,8.04791921,125.24,125.21,44.56737127]
[1744826376625,72.57696406,125.24,125.19,44.56737127]
[1744826376818,44.56737127,125.2,125.11,38.7585]
[1744826377017,44.56737127,125.19,125.11,38.7585]
[1744826377315,54.00959279,125.24,125.18,44.56737127]
[1744826377519,54.00959279,125.24,125.16,44.56737127]
[1744826377520,72.57696406,125.24,125.19,44.56737127]
[1744826377743,52.61529048,125.24,125.19,44.56737127]
[1744826378045,52.61529048,125.24,125.22,44.56737127]
[1744826378046,0.063,125.24,125.22,44.56737127]
[1744826378348,0.063,125.24,125.17,18.64964886]
[1744826378349,44.63037127,125.24,125.19,44.56737127]
[1744826378647,44.63037127,125.24,125.2,44.56737127]
[1744826378945,0.063,125.24,125.2,44.56737127]
[1744826379329,0.063,125.24,125.17,7.98913477]
[1744826379648,0.063,125.24,125.2,44.56737127]
[1744826380147,0.063,125.24,125.21,44.56737127]
[1744826380326,0.063,125.24,125.22,44.56737127]
[1744826380531,0.063,125.24,125.23,44.56737127]
[1744826380869,0.063,125.24,125.17,46.25716008]
[1744826380870,0.063,125.24,125.17,26.28432314]
[1744826381019,44.63037127,125.24,125.2,44.56737127]
[1744826381226,44.56737127,125.23,125.17,7.98913477]
[1744826381447,44.56737127,125.23,125.18,44.56737127]
[1744826381651,44.56737127,125.19,125.12,7.99232736]
[1744826381816,0.14216157,125.23,125.16,44.56737127]
[1744826382016,44.56737127,125.19,125.14,44.56737127]
[1744826382335,7.98849656,125.18,125.13,37.99132328]
[1744826382646,7.98849656,125.18,125.13,44.56737127]
[1744826382833,52.55586783,125.18,125.13,44.56737127]
[1744826383561,44.56737127,125.16,125.11,7.99266834]
[1744826383745,44.56737127,125.16,125.12,44.56737127]
[1744826384547,52.55734846,125.16,125.12,44.56737127]
[1744826384756,7.98997719,125.16,125.13,44.56737127]
[1744826384956,19.97079489,125.19,125.13,44.56737127]
[1744826384957,44.56737127,125.17,125.13,44.56737127]
[1744826385332,7.98658254,125.21,125.16,44.56737127]
[1744826385530,7.98658254,125.21,125.18,44.56737127]
[1744826385776,7.98530703,125.23,125.16,44.56737127]
[1744826385966,7.98530703,125.23,125.2,44.56737127]
[1744826386257,7.98530703,125.23,125.21,44.56737127]
[1744826386569,8.04766943,125.24,125.17,7.98913477]
[1744826386951,8.04766943,125.24,125.23,44.56737127]
[1744826386952,0.063,125.24,125.23,44.56737127]
[1744826387660,0.063,125.24,125.22,44.56737127]
[1744826388060,0.063,125.24,125.21,44.56737127]
[1744826388640,0.063,125.24,125.22,44.56737127]
[1744826389082,0.063,125.24,125.23,44.56737127]
[1744826389357,0.063,125.24,125.19,7.98774362]
[1744826389569,0.063,125.24,125.23,44.56737127]
[1744826391034,0.063,125.24,125.23,52.5526783]
[1744826391760,26.0,125.23,125.1,27.97761789]
[1744826391969,0.14216157,125.23,125.1,27.97761789]
[1744826392177,18.79181043,125.23,125.14,44.56737127]
[1744826392343,12.4836,125.24,125.16,44.56737127]
[1744826392542,7.98658254,125.21,125.14,7.99095133]
[1744826392850,44.56737127,125.19,125.1,44.56737127]
[1744826393043,27.95303889,125.21,125.15,44.56737127]
[1744826393246,44.56737127,125.18,125.14,44.56737127]
[1744826393447,44.56737127,125.19,125.14,44.56737127]
[1744826393848,44.56737127,125.17,125.12,44.56737127]
[1744826394246,44.56737127,125.18,125.13,44.56737127]
[1744826394549,27.95303889,125.21,125.14,44.56737127]
[1744826394748,44.56737127,125.18,125.14,44.56737127]
[1744826394972,44.56737127,125.18,125.13,44.56737127]
[1744826395148,44.56737127,125.17,125.1,78.56070652]
[1744826395348,44.56737127,125.17,125.13,44.56737127]
[1744826395963,7.98977309,125.16,125.13,44.56737127]
[1744826396275,44.56737127,125.18,125.13,44.56737127]
[1744826396589,44.56737127,125.17,125.12,44.56737127]
[1744826396745,44.56737127,125.17,125.1,33.99355741]
[1744826396746,44.56737127,125.17,125.13,44.56737127]
[1744826396946,44.56737127,125.18,125.14,44.56737127]
[1744826397156,44.56737127,125.16,125.1,26.0]
[1744826397350,44.56737127,125.15,125.09,0.03]
[1744826397653,44.56737127,125.14,125.09,44.59737127]
[1744826397864,18.79181043,125.19,125.11,44.56737127]
[1744826398066,27.95973797,125.18,125.11,44.56737127]
[1744826398269,44.56737127,125.14,125.1,44.56737127]
[1744826398575,44.56737127,125.14,125.09,0.03]
[1744826398576,44.56737127,125.13,125.09,0.03]
[1744826398866,44.56737127,125.13,125.09,44.59737127]
[1744826399240,44.56737127,125.16,125.09,44.59737127]
[1744826399241,44.56737127,125.12,125.09,0.03]
[1744826399445,44.56737127,125.11,125.09,0.03]
[1744826399668,107.84470361,125.18,125.09,44.59737127]
[1744826399873,44.56737127,125.15,125.11,44.56737127]
[1744826400041,44.56737127,125.16,125.11,44.56737127]
[1744826400246,7.98849656,125.18,125.13,44.56737127]
[1744826400467,44.56737127,125.15,125.09,34.02415637]
[1744826400767,44.56737127,125.14,125.09,0.03]
[1744826401078,27.95973797,125.18,125.09,0.03]
[1744826401079,18.79181043,125.17,125.09,0.03]
[1744826401374,44.56737127,125.1,125.09,0.03]
[1744826401566,89.13474254,125.1,125.09,0.03]
[1744826401954,12.3163,125.14,125.09,44.59737127]
[1744826402271,27.96198109,125.17,125.11,44.56737127]
[1744826402473,44.56737127,125.12,125.09,0.03]
[1744826402647,44.56737127,125.16,125.09,0.03]
[1744826402853,44.56737127,125.12,125.09,0.03]
[1744826403150,44.56737127,125.16,125.09,0.03]
[1744826403391,27.96198109,125.17,125.09,44.59737127]
[1744826403674,44.56737127,125.12,125.09,0.03]
[1744826403873,44.56737127,125.11,125.09,0.03]
[1744826404068,52.56026005,125.12,125.09,0.03]
[1744826404271,27.96025564,125.18,125.11,44.56737127]
[1744826404473,0.063,125.24,125.17,44.56737127]
[1744826404648,0.063,125.24,125.23,44.56737127]
[1744826404976,0.063,125.28,125.23,89.13474254]
[1744826405169,0.063,125.3,125.29,44.56737127]
[1744826405551,0.063,125.32,125.31,70.56737127]
[1744826405857,0.063,125.37,125.34,26.0]
[1744826406063,12.42058581,125.49,125.44,26.0]
[1744826406367,49.68234326,125.52,125.5,1.0]
[1744826406572,211.30554864,125.64,125.57,1.0]
[1744826406573,171.87305446,125.64,125.57,1.0]
[1744826406880,115.70946747,125.65,125.64,1.0]
[1744826407168,0.063,125.67,125.66,26.0]
[1744826407374,0.063,125.75,125.67,1.0]
[1744826407589,0.063,125.75,125.7,26.0]
[1744826407872,0.063,125.75,125.67,89.13474254]
[1744826407873,8.01805339,125.71,125.58,44.56737127]
[1744826408075,0.063,125.71,125.59,249.04]
[1744826408248,0.063,125.71,125.58,44.56737127]
[1744826408249,1.063,125.71,125.58,44.56737127]
[1744826408451,12.4166,125.7,125.56,23.92]
[1744826408752,28.16085087,125.76,125.59,39.91171321]
[1744826408952,44.56737127,125.6,125.58,39.65102725]
[1744826409254,7.2338,125.67,125.57,1.45621679]
[1744826409455,44.56737127,125.58,125.57,40.95845544]
[1744826409649,2.77492057,125.66,125.57,40.95845544]
[1744826409972,2.77492057,125.66,125.57,40.50223865]
[1744826410171,7.96114959,125.61,125.52,39.78394954]
[1744826410380,27.86402356,125.61,125.48,39.02373649]
[1744826410576,89.13474254,125.49,125.44,39.33595031]
[1744826410780,248.9,125.58,125.38,67.19117125]
[1744826410986,44.56737127,125.52,125.45,30.0]
[1744826411183,26.0,125.51,125.45,30.0]
[1744826411681,26.0,125.55,125.45,30.0]
[1744826411881,89.13474254,125.46,125.45,30.0]
[1744826412076,7.9713033,125.45,125.38,40.21542821]
[1744826412382,7.96812749,125.5,125.45,1.0]
[1744826412880,89.13474254,125.46,125.43,39.45065309]
[1744826413078,70.56737127,125.43,125.37,245.3071564]
[1744826413388,44.56737127,125.38,125.37,245.3071564]
[1744826413566,20.0,125.45,125.37,245.3071564]
[1744826413763,248.86,125.46,125.4,1.0]
[1744826413972,67.72368735,125.51,125.41,1.0]
[1744826414281,44.56737127,125.42,125.37,245.3071564]
[1744826414451,44.56737127,125.41,125.37,245.3071564]
[1744826414651,44.56737127,125.46,125.37,245.3071564]
[1744826414874,26.0,125.43,125.37,245.3071564]
[1744826415056,44.56737127,125.38,125.37,245.3071564]
[1744826415257,26.0,125.47,125.39,1.0]
[1744826415467,51.22064062,125.5,125.37,245.3071564]
[1744826415659,44.56737127,125.38,125.37,245.3071564]
[1744826416076,20.0,125.41,125.37,245.3071564]
[1744826416077,7.97384578,125.41,125.37,245.3071564]
[1744826416279,44.56737127,125.38,125.37,245.3071564]
[1744826416464,70.56737127,125.38,125.33,97.5667872]
[1744826416665,26.0,125.38,125.33,97.5667872]
[1744826416868,248.84,125.4,125.33,97.5667872]
[1744826416869,248.84,125.4,125.33,143.13415847]
[1744826417064,44.56737127,125.35,125.33,97.5667872]
[1744826417276,26.0,125.39,125.33,97.5667872]
[1744826417591,44.56737127,125.34,125.33,97.5667872]
[1744826417787,26.0,125.37,125.33,97.5667872]
[1744826418106,26.0,125.37,125.33,10.50189721]
[1744826418107,26.0,125.35,125.33,10.50189721]
[1744826418419,44.56737127,125.34,125.3,121.95848401]
[1744826418595,70.56737127,125.31,125.3,4.96691174]
[1744826418885,20.0,125.29,125.27,62.15162192]
[1744826419072,26.0,125.28,125.24,208.39046162]
[1744826419272,44.56737127,125.26,125.24,208.39046162]
[1744826419461,44.56737127,125.25,125.24,164.25749318]
[1744826419661,39.46041499,125.29,125.24,164.25749318]
[1744826419882,44.56737127,125.25,125.24,122.94427153]
[1744826420082,0.14216157,125.27,125.24,167.5116428]
[1744826420391,39.35926459,125.25,125.24,122.94427153]
[1744826420560,0.14216157,125.26,125.22,44.56737127]
[1744826420763,44.56737127,125.27,125.22,44.56737127]
[1744826420987,39.2938163,125.27,125.26,44.56737127]
[1744826421188,4.1314,125.3,125.28,1.0]
[1744826421392,4.1314,125.3,125.29,45.56737127]
[1744826421692,39.06017344,125.39,125.29,44.56737127]
[1744826421986,31.27602298,125.37,125.35,44.56737127]
[1744826422193,31.27602298,125.37,125.28,44.56737127]
[1744826422194,7.97702616,125.36,125.28,44.56737127]
[1744826422373,39.25243473,125.37,125.35,44.56737127]
[1744826422567,39.25243473,125.37,125.36,44.56737127]
[1744826422568,31.27602298,125.37,125.36,44.56737127]
[1744826422872,16.59715242,125.4,125.36,89.13474254]
[1744826423074,30.48771963,125.48,125.39,115.13474254]
[1744826423277,30.48771963,125.48,125.47,44.56737127]
[1744826424084,0.03,125.52,125.47,89.13474254]
[1744826424288,7.96305144,125.58,125.51,89.13474254]
[1744826424495,72.43805131,125.58,125.46,44.56737127]
[1744826424676,53.87068004,125.58,125.51,44.56737127]
[1744826424874,53.87068004,125.58,125.46,44.56737127]
[1744826425172,44.56737127,125.54,125.46,44.56737127]
[1744826425392,44.56737127,125.49,125.44,5.5347]
[1744826425702,44.56737127,125.49,125.4,55.80607127]
[1744826425882,44.56737127,125.47,125.43,44.56737127]
[1744826426089,7.97257434,125.43,125.39,44.56737127]
[1744826426395,44.56737127,125.44,125.39,44.56737127]
[1744826426396,7.96939751,125.48,125.42,44.56737127]
[1744826426697,7.96939751,125.48,125.4,44.56737127]
[1744826426901,44.56737127,125.47,125.4,44.56737127]
[1744826427081,27.89289129,125.48,125.45,44.56737127]
[1744826427287,7.96868041,125.5,125.47,44.56737127]
[1744826427484,19.91411663,125.54,125.46,44.56737127]
[1744826427675,7.96431984,125.56,125.51,44.56737127]
[1744826427872,52.53169111,125.56,125.46,44.56737127]
[1744826428180,52.53169111,125.56,125.4,44.70953284]
[1744826428181,44.56737127,125.52,125.4,44.56737127]
[1744826428484,44.56737127,125.48,125.43,44.56737127]
[1744826428997,38.64964886,125.55,125.36,18.64964886]
[1744826429176,44.56737127,125.5,125.45,44.56737127]
[1744826429377,44.56737127,125.51,125.46,44.56737127]
[1744826429584,26.0,125.54,125.42,44.56737127]
[1744826429585,44.56737127,125.47,125.42,44.56737127]
[1744826429789,26.0,125.52,125.46,44.56737127]
[1744826430101,26.0,125.52,125.4,44.56737127]
[1744826430102,0.14216157,125.53,125.41,18.933972]
[1744826430297,27.87956029,125.54,125.46,16.88884501]
[1744826430601,72.44693156,125.54,125.46,16.88884501]
[1744826430800,27.87956029,125.54,125.5,44.56737127]
[1744826430997,27.87956029,125.54,125.51,44.56737127]
[1744826431200,27.87956029,125.54,125.52,44.56737127]
[1744826431390,7.96558865,125.54,125.53,44.56737127]
[1744826431579,7.96558865,125.54,125.51,44.56737127]
[1744826431980,7.96558865,125.54,125.46,16.88884501]
[1744826432181,27.87956029,125.54,125.46,16.88884501]
[1744826432500,0.14216157,125.49,125.45,44.56737127]
[1744826432691,0.14216157,125.49,125.43,44.56737127]
[1744826432998,0.14216157,125.49,125.44,44.56737127]
[1744826433200,382.27544685,125.54,125.48,44.56737127]
[1744826433502,44.56737127,125.51,125.46,44.56737127]
[1744826434008,44.56737127,125.51,125.41,0.28432314]
[1744826434303,44.56737127,125.52,125.47,44.56737127]
[1744826434603,44.56737127,125.5,125.45,44.56737127]
[1744826434793,416.10339013,125.54,125.45,44.56737127]
[1744826434996,26.42648471,125.53,125.46,44.56737127]
[1744826435201,0.28432314,125.51,125.4,44.56737127]
[1744826435380,44.56737127,125.46,125.41,44.56737127]
[1744826435581,44.56737127,125.47,125.42,44.56737127]
[1744826435903,44.56737127,125.47,125.43,44.56737127]
[1744826436204,44.56737127,125.47,125.42,44.56737127]
[1744826436399,7.97066794,125.46,125.4,44.63037127]
[1744826436605,7.97066794,125.46,125.45,44.56737127]
[1744826436976,27.89733779,125.46,125.4,44.63037127]
[1744826437278,52.53803921,125.46,125.4,0.063]
[1744826437479,7.97066794,125.46,125.44,44.56737127]
[1744826437786,7.97066794,125.46,125.4,44.63037127]
[1744826437981,7.97066794,125.46,125.45,44.56737127]
[1744826438388,19.92196518,125.49,125.4,44.63037127]
[1744826438389,27.89072763,125.49,125.4,44.63037127]
[1744826438584,7.96876245,125.49,125.47,44.56737127]
[1744826439194,7.96622321,125.53,125.48,44.56737127]
[1744826439393,19.91197428,125.56,125.52,44.56737127]
[1744826439703,7.96431984,125.56,125.55,44.56737127]
[1744826440404,0.03,125.57,125.52,44.56737127]
[1744826440602,0.03,125.57,125.47,18.933972]
[1744826440807,0.03,125.57,125.54,44.56737127]
[1744826441506,0.03,125.57,125.56,44.56737127]
[1744826441690,0.03,125.57,125.5,26.0]
[1744826441883,0.03,125.57,125.56,44.56737127]
[1744826442502,0.03,125.57,125.56,89.13474254]
[1744826442707,0.03,125.64,125.56,89.13474254]
[1744826443009,0.03,125.64,125.63,44.56737127]
[1744826443208,0.03,125.64,125.63,89.13474254]
[1744826443391,248.68,125.75,125.63,89.13474254]
[1744826443591,248.68,125.75,125.58,44.56737127]
[1744826443592,44.56737127,125.7,125.58,44.56737127]
[1744826443795,44.56737127,125.65,125.56,31.6405]
[1744826443997,18.79181043,125.69,125.6,44.56737127]
[1744826444297,18.79181043,125.69,125.56,31.6405]
[1744826444298,44.56737127,125.66,125.61,44.56737127]
[1744826444485,7.9586152,125.65,125.62,44.56737127]
[1744826444885,7.9586152,125.65,125.58,44.56737127]
[1744826445085,7.9586152,125.65,125.62,44.56737127]
[1744826445281,44.56737127,125.63,125.56,5.6405]
[1744826445493,44.56737127,125.61,125.56,50.20787127]
[1744826445704,27.8551532,125.65,125.56,5.6405]
[1744826445906,44.56737127,125.62,125.56,5.6405]
[1744826446106,44.56737127,125.59,125.54,44.56737127]